bitfinex/quotes_ETHUSD_20260131
["timestamp","ask_amount","ask_price","bid_price","bid_amount"]
[1769903351239,0.012314,2443.5,2442.5,13.78470289]
[1769903351556,0.012314,2443.7,2442.5,13.78470289]
[1769903351858,0.012314,2443.9,2442.5,13.78470289]
[1769903351859,0.012314,2444.1,2442.7,14.85344184]
[1769903352054,0.012314,2443.9,2442.7,14.85344184]
[1769903353340,0.012314,2443.9,2442.9,14.80807674]
[1769903353536,0.012314,2443.9,2443.0,0.858]
[1769903354134,0.012314,2444.0,2443.0,14.64270289]
[1769903354640,0.012314,2444.1,2443.0,14.64270289]
[1769903355453,0.012314,2444.0,2443.1,14.80799297]
[1769903355861,0.012314,2443.8,2443.1,14.80799297]
[1769903357556,0.012314,2443.8,2443.1,14.80909297]
[1769903360168,0.012314,2443.4,2443.1,1.02439008]
[1769903360370,0.012314,2443.6,2443.2,0.858]
[1769903361243,0.012314,2443.5,2443.2,0.858]
[1769903363268,0.012314,2443.3,2443.2,0.858]
[1769903363437,0.012314,2443.4,2443.2,0.858]
[1769903363645,0.5275661,2443.4,2443.2,0.858]
[1769903364073,0.012314,2443.2,2442.9,0.0011]
[1769903364273,0.5275661,2443.4,2442.9,0.0011]
[1769903364497,4.10523216,2443.9,2442.9,13.78580289]
[1769903364498,0.001,2443.9,2442.9,13.78580289]
[1769903364651,0.012314,2443.8,2442.9,13.78580289]
[1769903364992,0.012314,2443.7,2442.9,13.78580289]
[1769903365354,0.012314,2443.8,2442.9,13.78580289]
[1769903365771,0.013314,2443.9,2442.9,13.78580289]
[1769903366055,0.001,2444.4,2443.2,13.78470289]
[1769903366255,0.001,2444.4,2443.4,14.85344184]
[1769903366455,0.012314,2445.1,2443.7,13.78470289]
[1769903366698,0.012314,2445.1,2443.9,13.78470289]
[1769903366853,0.012314,2445.2,2444.1,13.78470289]
[1769903367059,0.28362964,2445.3,2444.1,13.78470289]
[1769903367382,0.012314,2445.2,2444.1,13.78470289]
[1769903368394,0.012314,2445.2,2444.2,1.02282955]
[1769903368567,0.012314,2445.2,2444.2,14.80753244]
[1769903369093,0.27131564,2445.3,2444.2,14.80753244]
[1769903369292,0.28362964,2445.3,2444.2,14.80753244]
[1769903370960,0.27131564,2445.3,2444.2,14.80753244]
[1769903373175,0.012314,2445.7,2444.2,14.80753244]
[1769903373464,0.012314,2445.7,2444.2,15.87627139]
[1769903373666,0.012314,2445.7,2444.4,13.78470289]
[1769903374363,0.012314,2445.8,2444.4,13.78470289]
[1769903375390,0.012314,2445.8,2444.6,13.78470289]
[1769903375694,0.012314,2445.9,2444.8,13.78470289]
[1769903375861,0.012314,2445.3,2444.7,0.858]
[1769903376064,0.012314,2445.1,2444.7,0.858]
[1769903376409,0.012314,2445.0,2444.7,0.858]
[1769903376985,0.012314,2444.7,2444.1,1.02283052]
[1769903377184,0.012314,2444.7,2444.2,0.858]
[1769903377562,0.012314,2444.5,2444.2,0.858]
[1769903377903,0.012314,2444.3,2444.2,0.858]
[1769903378380,0.012314,2444.3,2443.6,0.858]
[1769903378706,0.52733565,2444.5,2443.6,0.858]
[1769903379006,0.52733565,2444.5,2443.6,14.72681101]
[1769903379206,1.03498775,2444.6,2443.7,1.02303883]
[1769903379506,0.012314,2444.5,2443.7,1.02303883]
[1769903380073,0.012314,2444.6,2443.7,1.02303883]
[1769903380473,0.012314,2444.8,2443.7,14.89184984]
[1769903380874,0.012314,2444.9,2443.7,14.89184984]
[1769903381193,1.03486547,2444.9,2443.7,14.89184984]
[1769903381392,0.012314,2444.8,2443.7,14.89184984]
[1769903381596,0.012314,2444.8,2443.6,0.858]
[1769903381597,0.012314,2444.2,2443.6,0.858]
[1769903381812,0.012314,2443.7,2443.2,0.858]
[1769903382323,0.012314,2443.7,2443.2,1.88123814]
[1769903382530,0.012314,2443.8,2443.2,1.88123814]
[1769903382690,0.012314,2443.8,2443.2,0.858]
[1769903382889,0.012314,2443.5,2443.2,0.858]
[1769903383314,0.012314,2443.6,2443.2,0.858]
[1769903383519,0.012314,2443.7,2443.2,0.858]
[1769903383902,0.012314,2443.7,2443.6,0.0011]
[1769903385116,1.03535283,2443.7,2443.6,0.0011]
[1769903386816,1.03535283,2443.7,2443.2,0.2565182]
[1769903387006,1.03535283,2443.7,2443.0,1.02333073]
[1769903387007,0.012314,2443.7,2443.0,1.02333073]
[1769903387201,0.012314,2443.6,2443.0,1.02333073]
[1769903387424,0.012314,2443.7,2443.1,1.02328535]
[1769903387618,0.012314,2443.7,2442.9,0.0011]
[1769903387792,1.03536726,2443.7,2442.9,0.0011]
[1769903387996,1.55055532,2443.7,2442.9,0.0011]
[1769903388198,0.012314,2443.5,2442.9,0.0011]
[1769903388397,0.012314,2443.4,2442.9,0.0011]
[1769903388596,0.012314,2443.3,2442.9,0.0011]
[1769903389010,0.012314,2443.0,2442.9,0.0011]
[1769903389213,0.012314,2443.0,2442.6,0.858]
[1769903389435,0.012314,2442.8,2442.6,0.858]
[1769903390242,1.0356359,2443.1,2442.6,0.858]
[1769903390243,0.012314,2443.1,2442.6,0.858]
[1769903390420,0.012314,2443.0,2442.6,0.858]
[1769903391843,0.012314,2442.9,2442.6,0.858]
[1769903395849,0.012314,2443.0,2442.6,0.858]
[1769903396345,0.001,2442.7,2442.6,0.858]
[1769903401022,0.2855877,2443.6,2442.6,15.739505]
[1769903401235,0.23466345,2443.6,2442.7,13.85800546]
[1769903401435,1.02280736,2444.3,2442.7,13.85800546]
[1769903401640,0.012314,2443.4,2442.6,14.881505]
[1769903401843,0.012314,2443.5,2442.6,14.881505]
[1769903402042,0.012314,2443.3,2442.6,14.881505]
[1769903402263,0.012314,2443.3,2442.5,0.858]
[1769903402264,0.012314,2443.0,2442.5,0.858]
[1769903402437,0.012314,2443.1,2442.6,1.02349687]
[1769903402767,0.012314,2443.0,2442.5,1.88153895]
[1769903402970,1.03534785,2443.8,2442.5,15.73954441]
[1769903403141,0.012314,2443.6,2442.5,15.73954441]
[1769903403338,0.012314,2443.5,2442.5,15.73954441]
[1769903403538,4.10415173,2443.9,2442.5,15.73954441]
[1769903403539,1.03517313,2444.2,2442.5,15.73954441]
[1769903403748,1.0351566,2444.2,2442.5,15.73954441]
[1769903404037,0.012314,2443.5,2442.5,15.73954441]
[1769903404247,0.012314,2443.5,2442.6,13.85800546]
[1769903404637,0.012314,2443.6,2442.6,13.85800546]
[1769903404837,0.012314,2443.6,2442.7,1.02345764]
[1769903405058,0.012314,2443.6,2442.7,14.8814631]
[1769903405260,0.012314,2443.9,2442.7,14.8814631]
[1769903405467,0.012314,2443.9,2442.8,13.85800546]
[1769903405468,0.012314,2443.8,2442.8,13.85800546]
[1769903406248,0.012314,2443.6,2442.8,13.85800546]
[1769903407268,0.012314,2443.6,2442.9,1.02337385]
[1769903407844,0.012314,2443.6,2442.9,14.55967444]
[1769903409571,0.012314,2443.5,2442.9,14.55967444]
[1769903410144,0.012314,2443.4,2442.9,14.55967444]
[1769903410655,0.012314,2443.5,2442.9,14.55967444]
[1769903411660,0.012314,2443.5,2443.0,0.858]
[1769903412675,0.012314,2443.6,2443.0,0.858]
[1769903412974,0.001,2443.9,2443.0,15.46303954]
[1769903413177,0.001,2443.9,2443.2,13.53630059]
[1769903413861,0.001,2443.9,2443.3,1.02320631]
[1769903414479,0.001,2443.9,2443.3,14.5595069]
[1769903414680,0.012314,2444.4,2443.4,13.53630059]
[1769903414852,0.012314,2444.1,2443.5,0.858]
[1769903415184,0.012314,2443.8,2443.5,0.858]
[1769903415681,0.012314,2443.8,2443.2,4.09282527]
[1769903415682,0.012314,2443.5,2443.4,0.858]
[1769903416051,0.012314,2443.6,2443.4,0.858]
[1769903416252,0.012314,2443.9,2443.4,1.88115482]
[1769903416456,0.012314,2444.4,2443.4,15.41745541]
[1769903416966,0.012314,2444.0,2443.4,15.41745541]
[1769903417169,0.012314,2444.4,2443.4,15.41745541]
[1769903417559,0.012314,2444.4,2443.5,13.53630059]
[1769903417761,0.012314,2444.4,2443.1,5.51764304]
[1769903417762,0.012314,2443.4,2442.9,1.02335049]
[1769903417971,0.012314,2443.3,2442.8,4.0935707]
[1769903418172,0.012314,2443.3,2442.7,0.0011]
[1769903418374,0.012314,2443.2,2442.7,1.0245552]
[1769903418885,0.012314,2443.2,2442.7,0.0011]
[1769903419185,0.012314,2442.8,2442.7,0.0011]
[1769903419374,0.012314,2443.4,2442.7,1.02455051]
[1769903419681,0.012314,2443.3,2442.7,1.02455051]
[1769903419888,1.0355744,2443.2,2442.7,0.0011]
[1769903420253,0.012314,2443.0,2442.7,0.0011]
[1769903420886,0.012314,2443.2,2442.7,0.0011]
[1769903421084,0.52760297,2443.2,2442.7,0.0011]
[1769903421291,0.52760297,2443.2,2442.9,0.0011]
[1769903422471,1.55086033,2443.2,2442.9,0.0011]
[1769903423685,0.012314,2443.6,2442.9,13.53740059]
[1769903424259,0.012314,2443.6,2443.0,1.02333196]
[1769903424488,0.012314,2443.5,2443.0,1.02333196]
[1769903424855,0.012314,2443.6,2443.0,1.02333196]
[1769903425072,0.012314,2443.7,2443.0,1.02333196]
[1769903425788,0.012314,2443.8,2443.0,1.02333196]
[1769903426013,0.012314,2444.1,2443.1,13.53630059]
[1769903426163,0.012314,2444.2,2443.3,13.53630059]
[1769903426377,0.012314,2444.2,2443.4,14.55946503]
[1769903429706,1.02273172,2444.5,2443.4,14.55946503]
[1769903429904,1.03504572,2444.5,2443.4,14.55946503]
[1769903430076,0.012314,2444.4,2443.4,14.55946503]
[1769903430409,0.012314,2444.4,2443.5,13.53630059]
[1769903431180,0.012314,2443.9,2443.3,1.02317231]
[1769903431404,0.012314,2443.7,2443.3,0.858]
[1769903431585,0.012314,2443.4,2443.0,1.02333]
[1769903431786,0.012314,2443.2,2442.9,0.0011]
[1769903431995,0.012314,2443.0,2442.7,0.0011]
[1769903432195,0.012314,2442.8,2442.7,0.0011]
[1769903432402,0.012314,2442.8,2442.6,0.0011]
[1769903433593,0.012314,2443.1,2442.6,0.0011]
[1769903433594,1.03541711,2443.6,2442.6,13.53740059]
[1769903433783,0.22819066,2443.5,2442.6,13.53740059]
[1769903433986,0.012314,2443.5,2442.6,13.53740059]
[1769903434288,0.012314,2443.4,2442.6,13.53740059]
[1769903434592,0.012314,2443.3,2442.6,13.53740059]
[1769903436198,0.012314,2443.4,2442.7,1.02345764]
[1769903436719,1.03548701,2443.4,2442.7,1.02345764]
[1769903436902,0.51403059,2443.3,2442.7,1.02345764]
[1769903439609,0.52634459,2443.3,2442.7,1.02345764]
[1769903440324,0.51403059,2443.3,2442.7,1.02345764]
[1769903440912,1.03538213,2443.7,2442.7,13.41669767]
[1769903441087,0.012314,2443.6,2442.7,13.41669767]
[1769903441296,0.012314,2443.5,2442.7,13.41669767]
[1769903441630,0.012314,2443.4,2442.7,13.41669767]
[1769903443041,0.012314,2443.4,2442.8,1.02341575]
[1769903443217,0.012314,2443.4,2442.9,0.858]
[1769903443411,1.03535283,2443.7,2442.9,0.858]
[1769903443744,0.012314,2444.0,2442.9,14.10894849]
[1769903444841,0.012314,2443.9,2442.9,14.10894849]
[1769903445131,0.012314,2443.9,2443.1,13.25094849]
[1769903445833,0.012314,2444.0,2443.1,13.25094849]
[1769903446912,0.012314,2444.1,2443.3,13.25094849]
[1769903447108,0.012314,2444.1,2443.4,0.858]
[1769903449030,0.012314,2444.0,2443.5,1.02312257]
[1769903449514,0.013314,2444.2,2443.5,14.27407106]
[1769903451139,1e-08,2444.2,2443.5,14.27407106]
[1769903451507,0.012314,2444.1,2443.5,1.02312257]
[1769903452905,1e-08,2444.2,2443.5,1.02312257]
[1769903453325,1e-08,2444.2,2443.5,14.27407106]
[1769903453525,0.012314,2444.5,2443.5,14.27407106]
[1769903453710,0.012314,2444.3,2443.5,14.27407106]
[1769903453909,0.012314,2444.1,2443.5,14.27407106]
[1769903456408,0.012314,2444.2,2443.5,14.27407106]
[1769903456613,0.012314,2444.2,2443.7,0.0011]
[1769903456808,0.012314,2444.1,2443.7,0.0011]
[1769903457436,0.012314,2444.3,2443.7,13.25204849]
[1769903457946,0.012314,2445.6,2444.0,1.42498527]
[1769903458236,0.012314,2445.8,2444.8,13.4626786]
[1769903458237,0.012314,2445.4,2444.8,13.4626786]
[1769903458537,0.012314,2445.3,2444.9,1.8805367]
[1769903458838,0.012314,2445.2,2444.9,1.8805367]
[1769903462316,0.012314,2445.2,2444.8,0.04185905]
[1769903462317,0.012314,2444.9,2444.8,0.04185905]
[1769903462550,0.012314,2444.5,2444.4,0.858]
[1769903462911,0.012314,2444.5,2444.2,0.858]
[1769903462912,0.012314,2444.3,2444.2,0.858]
[1769903463156,0.012314,2444.3,2443.5,0.0011]
[1769903463157,0.012314,2444.0,2443.8,1.02297655]
[1769903463311,0.012314,2444.4,2443.8,1.02297655]
[1769903463312,0.012314,2444.7,2443.8,1.02297655]
[1769903463515,0.012314,2444.2,2443.8,1.02297655]
[1769903464232,0.012314,2444.3,2443.8,1.02297655]
[1769903464759,0.012314,2444.3,2443.7,4.09324978]
[1769903465458,0.012314,2444.1,2443.7,1.02413883]
[1769903466026,0.012314,2444.4,2443.7,1.02413883]
[1769903466226,0.012314,2444.3,2443.7,1.02413883]
[1769903467035,0.012314,2444.2,2443.7,1.02413883]
[1769903468268,0.012314,2444.2,2443.7,14.19456964]
[1769903468438,0.012314,2444.3,2443.7,14.19456964]
[1769903469266,0.001,2444.0,2443.7,14.19456964]
[1769903470152,0.012314,2444.2,2443.7,14.19456964]
[1769903470364,0.012314,2443.8,2443.6,0.858]
[1769903470540,0.012314,2444.5,2443.7,1.02303557]
[1769903470864,12.44397261,2444.8,2443.7,14.19346638]
[1769903470865,0.012314,2444.8,2443.7,14.19346638]
[1769903471165,0.012314,2444.9,2443.7,14.19346638]
[1769903471536,0.012314,2444.8,2443.7,14.19346638]
[1769903471770,0.012314,2444.9,2443.8,13.17043081]
[1769903472252,0.012314,2444.8,2443.8,13.17043081]
[1769903473244,0.012314,2444.8,2443.9,1.02295511]
[1769903473451,0.012314,2444.8,2444.0,13.17043081]
[1769903473639,0.012314,2444.8,2444.1,0.858]
[1769903473971,0.012314,2444.8,2444.1,14.02843081]
[1769903475048,0.012314,2444.9,2444.1,14.02843081]
[1769903475471,0.012314,2445.8,2444.5,13.17043081]
[1769903475676,0.012314,2445.5,2444.6,14.02843081]
[1769903476675,0.012314,2445.8,2444.6,14.02843081]
[1769903477172,0.012314,2445.7,2444.6,14.02843081]
[1769903477368,0.012314,2445.7,2444.9,13.17043081]
[1769903477555,0.012314,2445.8,2444.9,13.17043081]
[1769903477752,0.012314,2445.7,2444.9,13.17043081]
[1769903479156,0.012314,2445.8,2444.9,13.17043081]
[1769903479883,0.012314,2445.8,2445.0,1.02249488]
[1769903480084,0.012314,2445.8,2445.1,0.858]
[1769903480252,0.012314,2445.7,2445.1,0.858]
[1769903480579,0.012314,2445.6,2445.1,0.858]
[1769903480968,0.012314,2445.4,2445.1,0.858]
[1769903481177,0.012314,2445.2,2445.1,0.858]
[1769903481494,0.012314,2445.3,2445.1,0.858]
[1769903482053,0.012314,2445.4,2445.2,1.02241125]
[1769903482287,0.012314,2445.6,2445.2,1.02241125]
[1769903482461,0.012314,2445.5,2445.2,1.02241125]
[1769903482659,0.012314,2445.6,2445.2,1.02241125]
[1769903483184,0.29419862,2446.0,2445.2,1.02241125]
[1769903483483,0.012314,2445.8,2445.2,1.02241125]
[1769903483676,0.012314,2445.7,2445.2,1.02241125]
[1769903483854,0.012314,2445.4,2445.1,1.88044962]
[1769903484055,0.012314,2445.2,2445.1,0.858]
[1769903484283,0.012314,2445.0,2444.5,1.07887343]
[1769903484456,0.012314,2445.0,2444.6,1.02265427]
[1769903484661,0.012314,2445.4,2444.6,1.02265427]
[1769903484662,0.012314,2445.6,2444.6,14.70443084]
[1769903484878,0.012314,2445.4,2444.6,14.70443084]
[1769903485189,0.012314,2445.6,2444.6,14.70443084]
[1769903485575,0.012314,2445.6,2444.7,0.86404018]
[1769903485759,0.012314,2445.4,2444.8,0.86404018]
[1769903485955,0.012314,2445.4,2444.6,14.70443084]
[1769903486156,0.012314,2445.4,2444.8,1.02257853]
[1769903486566,0.012314,2445.3,2444.8,1.02257853]
[1769903486795,0.012314,2445.1,2444.8,1.02257853]
[1769903487865,0.012314,2445.6,2444.8,14.19300934]
[1769903488077,0.012314,2445.6,2445.0,1.02249488]
[1769903488669,0.012314,2445.7,2445.0,1.02249488]
[1769903488870,0.012314,2445.8,2445.1,0.86510684]
[1769903489066,0.012314,2445.9,2445.0,14.19292569]
[1769903489272,0.012314,2445.9,2445.1,14.03553633]
[1769903489472,0.28188462,2446.0,2445.1,13.17043081]
[1769903489678,0.012314,2445.9,2445.2,0.86537194]
[1769903489882,0.012314,2445.9,2445.1,13.17043081]
[1769903490198,0.012314,2445.9,2445.2,0.86546465]
[1769903490394,0.012314,2445.9,2445.3,1.02236944]
[1769903490572,0.23313976,2446.0,2445.4,14.89263556]
[1769903490781,0.23313976,2446.0,2445.6,13.17043081]
[1769903491194,0.012314,2446.5,2445.7,14.03508658]
[1769903491494,0.013314,2446.7,2445.8,14.03465501]
[1769903491697,12.45616347,2447.4,2445.8,14.03465501]
[1769903491698,0.012314,2447.3,2446.0,13.17043081]
[1769903491871,0.012314,2446.6,2446.1,0.8642242]
[1769903492071,0.012314,2446.5,2446.0,0.857]
[1769903492270,0.012314,2446.5,2446.1,1.02203507]
[1769903492702,0.012314,2446.6,2446.1,1.02203507]
[1769903493575,0.012314,2446.5,2446.1,1.02203507]
[1769903494172,0.012314,2446.4,2446.0,0.857]
[1769903494409,0.012314,2446.5,2446.0,1.87904804]
[1769903494617,13.4788313,2447.0,2446.0,15.56180082]
[1769903494618,0.012314,2447.0,2446.0,15.56180082]
[1769903494797,0.012314,2446.9,2446.0,15.56180082]
[1769903496473,0.012314,2447.0,2446.0,15.56180082]
[1769903497105,0.012314,2447.1,2446.1,13.87295605]
[1769903497402,0.012314,2447.1,2446.2,14.31155804]
[1769903498176,0.012314,2446.9,2446.2,13.87295605]
[1769903498376,0.012314,2447.0,2446.3,1.02195151]
[1769903498604,0.012314,2446.9,2446.3,1.02195151]
[1769903499614,0.012314,2447.0,2446.3,1.02195151]
[1769903499816,0.012314,2447.3,2446.3,1.02195151]
[1769903500111,0.012314,2447.3,2446.3,14.89490756]
[1769903500614,0.012314,2446.9,2446.3,1.02195151]
[1769903500779,0.012314,2446.7,2446.3,1.02194884]
[1769903501174,0.012314,2447.0,2446.3,1.02194884]
[1769903502121,0.012314,2447.4,2446.3,13.62348447]
[1769903504327,0.012314,2447.4,2446.4,0.86273782]
[1769903504507,0.012314,2447.4,2446.3,13.62348447]
[1769903504709,0.012314,2447.4,2446.4,13.46430404]
[1769903504914,0.012314,2447.5,2446.5,14.4804036]
[1769903505624,0.012314,2447.4,2446.5,14.4804036]
[1769903505827,0.012314,2447.6,2446.7,12.60153563]
[1769903506125,0.29119258,2447.8,2446.7,12.60153563]
[1769903506423,0.27887858,2447.8,2446.9,12.60153563]
[1769903506725,0.27887858,2447.8,2447.1,12.60153563]
[1769903506922,0.27887858,2447.8,2447.2,1.02157567]
[1769903507709,0.27887858,2447.8,2447.2,13.6231113]
[1769903508108,0.012314,2447.5,2446.7,1.07807877]
[1769903508307,0.012314,2447.0,2446.7,1.02176036]
[1769903508506,0.012314,2447.0,2446.4,0.0011]
[1769903508507,0.012314,2446.8,2446.4,0.0011]
[1769903508707,0.012314,2446.8,2446.4,1.02299063]
[1769903509099,0.012314,2446.8,2446.4,0.0011]
[1769903509100,0.012314,2446.5,2446.4,0.0011]
[1769903509332,0.012314,2446.8,2446.3,1.87894195]
[1769903510501,0.012314,2447.5,2446.3,14.48047758]
[1769903510847,0.012314,2447.7,2446.3,14.48047758]
[1769903510848,1.03370736,2447.7,2446.5,12.60153563]
[1769903511009,0.012314,2447.5,2446.7,13.62332007]
[1769903511840,0.012314,2447.5,2446.3,1.02192327]
[1769903511841,0.012314,2446.8,2446.3,1.02192327]
[1769903512040,0.012314,2446.7,2446.3,1.0219504]
[1769903512405,0.012314,2446.7,2446.2,1.02196474]
[1769903512644,0.012314,2446.7,2446.3,1.02194875]
[1769903513025,0.012314,2446.7,2446.1,1.02313507]
[1769903513211,0.012314,2446.7,2446.2,0.86276772]
[1769903513533,0.012314,2446.7,2446.1,1.02313507]
[1769903513723,0.012314,2446.7,2446.2,0.86299711]
[1769903513917,0.012314,2446.7,2446.1,1.02313507]
[1769903514122,0.012314,2446.7,2446.2,0.86300602]
[1769903514318,0.012314,2446.7,2446.1,1.02313507]
[1769903514523,0.012314,2446.7,2446.2,0.86338807]
[1769903514722,0.012314,2446.7,2446.1,1.02313507]
[1769903514929,0.012314,2446.7,2446.2,0.86340028]
[1769903515236,0.012314,2446.9,2446.1,13.6246707]
[1769903515534,0.012314,2446.9,2446.2,0.86392065]
[1769903515831,0.012314,2446.9,2446.1,13.6246707]
[1769903516039,0.012314,2446.9,2446.2,0.86376952]
[1769903516203,0.012314,2446.8,2446.1,13.6246707]
[1769903516407,0.012314,2446.9,2446.1,13.6246707]
[1769903516408,1.03376445,2447.5,2446.2,13.46563056]
[1769903516611,0.012314,2447.2,2446.3,13.46563056]
[1769903516810,0.012314,2447.2,2446.4,0.86409493]
[1769903517119,0.012314,2447.3,2446.4,1.02190974]
[1769903517315,0.012314,2447.3,2446.5,0.86446633]
[1769903517521,0.012314,2447.1,2446.4,1.02190974]
[1769903517816,0.012314,2447.1,2446.5,0.86446962]
[1769903518031,0.012314,2447.0,2446.4,1.02190974]
[1769903518335,0.012314,2447.0,2446.5,0.86446939]
[1769903518536,0.012314,2447.0,2446.4,1.02190974]
[1769903518736,0.012314,2447.0,2446.5,0.86528436]
[1769903518923,0.012314,2447.0,2446.4,1.02190974]
[1769903519106,0.012314,2447.0,2446.5,1.88711794]
[1769903519309,1.03381368,2447.4,2446.6,0.86526936]
[1769903519534,0.012314,2447.3,2446.7,0.86526936]
[1769903519833,0.012314,2447.3,2446.5,13.62337022]
[1769903520035,0.012314,2447.3,2446.6,0.86592478]
[1769903520220,0.52674418,2447.3,2446.7,0.86668311]
[1769903520536,0.51443018,2447.3,2446.8,0.86662678]
[1769903520722,1.02143019,2447.6,2446.8,0.86662678]
[1769903520723,0.27887858,2447.8,2447.1,12.60153563]
[1769903520925,1.03354704,2448.1,2447.2,0.86662678]
[1769903521233,1.03354704,2448.1,2447.3,1.88813327]
[1769903521234,0.012314,2447.8,2447.3,1.88813327]
[1769903521420,0.012314,2447.8,2447.4,0.86662678]
[1769903521733,0.012314,2447.8,2447.3,1.02150649]
[1769903521938,0.51306275,2448.0,2447.4,0.86618774]
[1769903522237,0.012314,2447.9,2447.3,1.02150649]
[1769903522435,0.012314,2447.6,2447.2,0.857]
[1769903522635,0.012314,2447.4,2447.3,0.06132469]
[1769903522818,0.012314,2447.4,2447.2,0.61429137]
[1769903523136,0.012314,2447.3,2446.8,1.02172377]
[1769903523312,0.012314,2447.4,2446.6,1.0218262]
[1769903523512,0.012314,2447.3,2446.6,1.0218262]
[1769903523740,0.012314,2446.9,2446.4,2.10633918]
[1769903524035,0.012314,2447.0,2446.5,1.02186594]
[1769903524210,0.012314,2447.1,2446.5,1.02186594]
[1769903525009,4.09798263,2447.6,2446.6,12.60153563]
[1769903525211,1.02135432,2447.8,2446.7,13.62332007]
[1769903525826,0.012314,2447.7,2446.7,13.62332007]
[1769903527136,0.012314,2447.4,2446.6,1.02181224]
[1769903527337,0.012314,2447.1,2446.6,1.02181224]
[1769903528139,0.012314,2446.9,2446.4,1.02299675]
[1769903528565,0.012314,2447.0,2446.5,1.02185513]
[1769903528731,1.03382555,2447.4,2446.5,1.02185513]
[1769903529050,0.012314,2447.1,2446.5,1.02185576]
[1769903529251,0.012314,2447.1,2446.4,1.02300974]
[1769903530042,0.012314,2447.3,2446.4,14.03298972]
[1769903530410,0.012314,2447.1,2446.4,1.02300974]
[1769903530618,0.012314,2447.1,2446.4,0.0011]
[1769903530619,0.012314,2446.7,2446.4,0.0011]
[1769903531114,0.012314,2447.0,2446.4,0.0011]
[1769903531562,0.012314,2447.3,2446.4,0.0011]
[1769903531769,1.03378237,2447.5,2446.4,13.01107998]
[1769903532068,0.012314,2447.4,2446.4,13.01107998]
[1769903532229,1.5480461,2447.7,2446.4,13.01107998]
[1769903532569,0.012314,2447.6,2446.6,13.01107998]
[1769903532765,0.012314,2447.5,2446.6,13.01107998]
[1769903532937,0.012314,2447.4,2446.6,13.01107998]
[1769903533452,0.012314,2447.4,2446.7,1.02178444]
[1769903533629,0.012314,2447.5,2446.7,1.02178444]
[1769903534444,0.52667146,2447.7,2446.7,14.03176442]
[1769903534625,0.012314,2447.7,2446.7,14.03176442]
[1769903535129,0.012314,2447.7,2446.7,14.88876442]
[1769903535320,0.012314,2448.0,2446.7,15.97211831]
[1769903535526,0.012314,2448.1,2446.9,13.00997998]
[1769903535740,0.012314,2448.0,2446.9,13.00997998]
[1769903535938,0.012314,2448.1,2446.9,13.00997998]
[1769903536144,0.012314,2448.1,2446.9,14.09333387]
[1769903536741,0.012314,2448.1,2446.8,1.42498527]
[1769903536742,0.012314,2448.1,2447.0,1.08335389]
[1769903536954,0.012314,2448.1,2447.1,13.00997998]
[1769903537528,0.012314,2448.1,2447.2,1.02157567]
[1769903537937,0.012314,2447.9,2447.2,1.02157567]
[1769903538337,0.012314,2447.9,2447.2,14.03155565]
[1769903538548,0.012314,2448.1,2447.3,0.857]
[1769903538747,0.013314,2448.3,2447.4,13.00997998]
[1769903539055,0.001,2448.3,2447.4,13.00997998]
[1769903539259,0.22485317,2448.4,2447.5,13.00997998]
[1769903539458,0.012314,2448.3,2447.5,13.00997998]
[1769903539637,0.012314,2448.3,2447.6,1.02140872]
[1769903540233,0.22485317,2448.4,2447.6,14.0313887]
[1769903541154,1.02073687,2449.3,2447.7,13.00997998]
[1769903541351,0.012314,2449.1,2447.7,14.09333387]
[1769903541552,0.012314,2449.1,2447.8,13.00997998]
[1769903541756,0.012314,2449.1,2448.0,13.00997998]
[1769903542064,0.012314,2449.3,2448.0,13.00997998]
[1769903542265,0.001,2449.4,2448.0,13.00997998]
[1769903542738,0.013314,2449.4,2448.0,13.00997998]
[1769903542938,0.012314,2449.3,2448.0,13.00997998]
[1769903543174,0.012314,2449.1,2448.0,13.00997998]
[1769903543667,0.012314,2449.2,2448.1,14.03118009]
[1769903543870,0.001,2449.4,2448.1,14.03118009]
[1769903544167,0.001,2449.4,2448.3,13.00997998]
[1769903544962,0.001,2449.2,2448.3,13.00997998]
[1769903545669,0.001,2449.2,2448.5,13.00997998]
[1769903545870,0.001,2449.2,2448.5,13.86597998]
[1769903548256,0.001,2449.2,2448.6,1.02099158]
[1769903548955,0.012314,2449.1,2448.5,1.87702301]
[1769903549280,0.001,2449.2,2448.5,1.87702301]
[1769903550203,0.001,2449.2,2448.5,14.88700299]
[1769903551811,0.001,2449.2,2448.5,1.87702301]
[1769903552580,0.012314,2449.1,2448.5,1.02102301]
[1769903553082,0.013314,2449.2,2448.5,1.02102301]
[1769903553596,0.001,2449.2,2448.5,14.03100299]
[1769903553974,0.001,2449.2,2448.5,1.02102301]
[1769903556182,0.001,2449.2,2448.3,17.09411312]
[1769903556603,0.001,2449.2,2448.4,13.00997998]
[1769903558477,0.001,2449.2,2448.6,13.27540439]
[1769903561000,0.001,2449.2,2448.7,15.15235428]
[1769903562025,0.27389375,2449.6,2448.8,13.40241147]
[1769903562326,1e-08,2449.6,2448.8,13.40241147]
[1769903562686,1e-08,2449.6,2449.0,13.40241147]
[1769903562900,0.0845412,2450.2,2449.0,13.40241147]
[1769903563116,0.0845412,2450.2,2449.2,13.40241147]
[1769903563297,0.0845412,2450.2,2449.4,13.40241147]
[1769903563684,1.03228542,2451.1,2449.5,13.40241147]
[1769903563909,1.03228542,2451.1,2449.3,1.93935389]
[1769903563910,0.012314,2450.6,2449.4,13.40241147]
[1769903564287,0.012314,2450.6,2449.4,14.48576536]
[1769903564780,0.012314,2450.6,2449.4,13.40241147]
[1769903565097,1.03247813,2450.6,2449.6,13.40241147]
[1769903565414,0.012314,2450.4,2449.5,1.02061645]
[1769903566002,0.012314,2450.3,2449.5,1.02061645]
[1769903567253,13.56302029,2450.3,2449.3,4.08273874]
[1769903567530,0.012314,2450.0,2449.3,1.0206738]
[1769903567942,0.012314,2449.9,2449.2,1.02071344]
[1769903568103,0.012314,2449.9,2449.0,0.856]
[1769903568104,0.012314,2449.4,2449.0,0.856]
[1769903568605,0.012314,2449.2,2448.6,1.02095895]
[1769903569332,0.012314,2449.3,2448.6,1.02205895]